bitfinex-derivatives/quotes_BTCF0:USTF0_20250609
["timestamp","ask_amount","ask_price","bid_price","bid_amount"]
[1749452975162,1.29674928,105590.0,105580.0,0.35588214]
[1749452975866,1.29674928,105590.0,105580.0,0.35588217]
[1749452976364,1.29674928,105590.0,105580.0,0.34250224]
[1749452976662,1.29674928,105590.0,105580.0,0.35588282]
[1749452976964,1.29674928,105590.0,105580.0,0.34250224]
[1749452977265,1.29674928,105590.0,105580.0,0.35588283]
[1749452977865,1.29674928,105590.0,105580.0,0.34250224]
[1749452978065,1.29269268,105590.0,105580.0,0.35588286]
[1749452978364,1.29269268,105590.0,105580.0,0.35588284]
[1749452978565,1.29269268,105590.0,105580.0,0.34250224]
[1749452978761,0.93189268,105590.0,105580.0,0.35588286]
[1749452978957,1.29674928,105590.0,105580.0,0.3558829]
[1749452979158,1.29674928,105590.0,105580.0,0.35588286]
[1749452979353,1.29674928,105590.0,105580.0,0.35588282]
[1749452979666,1.29674928,105590.0,105580.0,0.35588285]
[1749452980264,1.29269268,105590.0,105580.0,0.35588285]
[1749452980463,1.29269268,105590.0,105580.0,0.3558828]
[1749452980660,1.29269268,105590.0,105580.0,0.35588283]
[1749452980865,1.29269268,105590.0,105580.0,0.35588288]
[1749452980866,0.93189268,105590.0,105580.0,0.35588288]
[1749452981066,1.29269268,105590.0,105580.0,0.34250224]
[1749452981770,1.29269268,105590.0,105580.0,0.35588285]
[1749452982265,1.29269268,105590.0,105580.0,0.35588287]
[1749452982462,1.29269268,105590.0,105580.0,0.35588285]
[1749452982864,1.29269268,105590.0,105580.0,0.34250224]
[1749452983067,1.29269268,105590.0,105580.0,0.35588419]
[1749452983469,1.29269268,105590.0,105580.0,0.355884]
[1749452983968,1.29269268,105590.0,105580.0,0.34250224]
[1749452984366,1.29269268,105590.0,105580.0,0.35588412]
[1749452984669,1.29269268,105590.0,105580.0,0.34250224]
[1749452984871,1.29269268,105590.0,105580.0,0.35588411]
[1749452985269,1.29269268,105590.0,105580.0,0.3558841]
[1749452985470,1.29269268,105590.0,105580.0,0.35588409]
[1749452985666,1.29269268,105590.0,105580.0,0.35588411]
[1749452985870,1.29269268,105590.0,105580.0,0.34250224]
[1749452986270,1.29269268,105590.0,105580.0,0.35588408]
[1749452986570,1.29269268,105590.0,105580.0,0.34250224]
[1749452986767,1.29269268,105590.0,105580.0,0.35588426]
[1749452987367,1.29269268,105590.0,105580.0,0.34250224]
[1749452987574,1.29269268,105590.0,105580.0,0.35588445]
[1749452987768,1.29269268,105590.0,105580.0,0.34250224]
[1749452988168,1.29269268,105590.0,105580.0,0.35588446]
[1749452988371,1.29269268,105590.0,105580.0,0.35588443]
[1749452988672,1.29269268,105590.0,105580.0,0.38588443]
[1749452989077,1.29269268,105590.0,105580.0,0.3858843]
[1749452989275,1.29269268,105590.0,105580.0,0.48985018]
[1749452989463,1.29269268,105590.0,105580.0,0.50321454]
[1749452989668,1.29269268,105590.0,105580.0,0.48985018]
[1749452989868,1.29269268,105590.0,105580.0,0.50322212]
[1749452990176,1.29269268,105590.0,105580.0,0.38587418]
[1749452990775,1.29269268,105590.0,105580.0,0.38587398]
[1749452991075,1.29269268,105590.0,105580.0,0.37250224]
[1749452991267,1.29269268,105590.0,105580.0,0.38587391]
[1749452991468,1.29269268,105590.0,105580.0,0.37250224]
[1749452991669,1.29269268,105590.0,105580.0,0.38587388]
[1749452992675,1.29269268,105590.0,105580.0,0.37250224]
[1749452992868,1.29269268,105590.0,105580.0,0.38587383]
[1749452993064,1.29269268,105590.0,105580.0,0.38587377]
[1749452993267,1.29269268,105590.0,105580.0,0.38587376]
[1749452993970,1.29269268,105590.0,105580.0,0.38587367]
[1749452994565,1.29269268,105590.0,105580.0,0.37250224]
[1749452995071,1.29269268,105590.0,105580.0,0.38587368]
[1749452996169,1.29269268,105590.0,105580.0,0.38587357]
[1749452996474,1.29269268,105590.0,105580.0,0.38587354]
[1749452996877,1.29269268,105590.0,105580.0,0.38587219]
[1749452997768,1.29269268,105590.0,105580.0,0.38587218]
[1749452998270,1.29269268,105590.0,105580.0,0.37250224]
[1749452998466,1.29269268,105590.0,105580.0,0.38587214]
[1749452998663,1.29269268,105590.0,105580.0,0.38587217]
[1749452999677,1.29269268,105590.0,105580.0,0.38587218]
[1749452999977,1.29269268,105590.0,105580.0,0.37250224]
[1749453000176,1.29269268,105590.0,105580.0,0.38587213]
[1749453000974,1.29269268,105590.0,105580.0,0.40014743]
[1749453001376,1.29269268,105590.0,105580.0,0.37250224]
[1749453001576,1.29269268,105590.0,105580.0,0.40014788]
[1749453002675,1.29269268,105590.0,105580.0,0.38587257]
[1749453002978,1.29269268,105590.0,105580.0,0.38677868]
[1749453003178,1.29269268,105590.0,105580.0,0.38587251]
[1749453003382,1.29269268,105590.0,105580.0,0.40014887]
[1749453003681,1.29269268,105590.0,105580.0,0.40323888]
[1749453004080,1.29269268,105590.0,105580.0,0.40323894]
[1749453004276,1.29269268,105590.0,105580.0,0.40324243]
[1749453004486,1.29269268,105590.0,105580.0,0.40324237]
[1749453004673,1.17534474,105590.0,105580.0,0.40324202]
[1749453004873,1.29269268,105590.0,105580.0,0.38987211]
[1749453005172,1.29269268,105590.0,105580.0,0.40324105]
[1749453005379,1.29269268,105590.0,105580.0,0.38896118]
[1749453005579,1.29269268,105590.0,105580.0,0.40324105]
[1749453005777,1.29269268,105590.0,105580.0,0.38896118]
[1749453006082,1.17534474,105590.0,105580.0,0.38987237]
[1749453006280,1.29269268,105590.0,105580.0,0.38896308]
[1749453006482,1.29269268,105590.0,105580.0,0.4032431]
[1749453006682,1.29269268,105590.0,105580.0,0.40324384]
[1749453006982,1.29269268,105590.0,105580.0,0.40324385]
[1749453007186,0.93189268,105590.0,105580.0,0.40324385]
[1749453007484,1.29269268,105590.0,105580.0,0.40324385]
[1749453007879,1.29269268,105590.0,105580.0,0.4032439]
[1749453008083,1.29269268,105590.0,105580.0,0.40324391]
[1749453008276,1.29269268,105590.0,105580.0,0.40324157]
[1749453008476,1.29269268,105590.0,105580.0,0.38896385]
[1749453008685,1.29269268,105590.0,105580.0,0.40324151]
[1749453009490,1.29273268,105590.0,105580.0,0.40324151]
[1749453009680,1.29273268,105590.0,105580.0,0.40324201]
[1749453009882,1.29273268,105590.0,105580.0,0.38987139]
[1749453010183,1.29273268,105590.0,105580.0,0.40324227]
[1749453010484,1.29273268,105590.0,105580.0,0.40324232]
[1749453011181,1.29273268,105590.0,105580.0,0.40324235]
[1749453011481,0.76617268,105590.0,105580.0,0.40324232]
[1749453011686,1.29269268,105590.0,105580.0,0.38896316]
[1749453012080,1.29269268,105590.0,105580.0,0.40324236]
[1749453012981,1.29269268,105590.0,105580.0,0.40324246]
[1749453013185,1.29269268,105590.0,105580.0,0.37559224]
[1749453013392,1.29269268,105590.0,105580.0,0.38896312]
[1749453013688,1.29670928,105590.0,105580.0,0.40324378]
[1749453014386,1.29670928,105590.0,105580.0,0.40324122]
[1749453014687,1.29265268,105590.0,105580.0,0.40324122]
[1749453014986,1.29265268,105590.0,105580.0,0.38986982]
[1749453015286,1.29265268,105590.0,105580.0,0.40324]
[1749453015887,1.29265268,105590.0,105580.0,0.3898698]
[1749453016084,1.29261268,105590.0,105580.0,0.3898698]
[1749453016284,1.29261268,105590.0,105580.0,0.38986989]
[1749453016680,1.29261268,105590.0,105580.0,0.38987011]
[1749453016986,1.29261268,105590.0,105580.0,0.37559224]
[1749453017183,1.29261268,105590.0,105580.0,0.38987011]
[1749453018091,0.93181268,105590.0,105580.0,0.38987251]
[1749453018287,1.29261268,105590.0,105580.0,0.38987251]
[1749453018792,1.29261268,105590.0,105580.0,0.38987215]
[1749453019588,1.29666928,105590.0,105580.0,0.38987215]
[1749453019890,1.29666928,105590.0,105580.0,0.38987214]
[1749453020086,0.93586928,105590.0,105580.0,0.38987214]
[1749453020276,1.29666928,105590.0,105580.0,0.38987215]
[1749453020685,1.29261268,105590.0,105580.0,0.38987215]
[1749453021187,1.29261268,105590.0,105580.0,0.37559224]
[1749453021592,1.29666928,105590.0,105580.0,0.37559224]
[1749453022592,1.29261268,105590.0,105580.0,0.37559224]
[1749453023396,1.29261268,105590.0,105580.0,0.12515204]
[1749453023690,1.29666928,105590.0,105580.0,0.31449214]
[1749453024994,1.29666928,105590.0,105580.0,0.31249214]
[1749453025181,1.29666928,105590.0,105580.0,0.31349214]
[1749453025386,1.29666928,105590.0,105580.0,0.31149214]
[1749453029698,1.29261268,105590.0,105580.0,0.31149214]
[1749453032798,1.29666928,105590.0,105580.0,0.31149214]
[1749453033802,1.29261268,105590.0,105580.0,0.31149214]
[1749453034799,1.29666928,105590.0,105580.0,0.31149214]
[1749453035901,1.29261268,105590.0,105580.0,0.31149214]
[1749453037000,1.29666928,105590.0,105580.0,0.31149214]
[1749453037901,1.29261268,105590.0,105580.0,0.31149214]
[1749453042605,0.93181268,105590.0,105580.0,0.31149214]
[1749453042806,1.29261268,105590.0,105580.0,0.31149214]
[1749453063331,1.29666928,105590.0,105580.0,0.31149214]
[1749453065024,1.41401722,105590.0,105580.0,0.00423873]
[1749453065224,1.41401722,105590.0,105580.0,0.1062616]
[1749453065628,1.41401722,105590.0,105580.0,0.10632876]
[1749453066225,1.41401722,105590.0,105580.0,0.10632578]
[1749453066629,1.41401722,105590.0,105580.0,0.09289768]
[1749453066831,1.41401722,105590.0,105580.0,0.1063258]
[1749453067022,1.41401722,105590.0,105580.0,0.09189768]
[1749453067222,1.41601722,105590.0,105580.0,0.10532559]
[1749453068431,1.41801722,105590.0,105580.0,0.10532387]
[1749453068630,1.41801722,105590.0,105580.0,0.10532388]
[1749453068832,1.41801722,105590.0,105580.0,0.10532636]
[1749453069130,1.41801722,105590.0,105580.0,0.10532685]
[1749453069526,1.41801722,105590.0,105580.0,0.10532669]
[1749453069932,1.41801722,105590.0,105580.0,0.09189768]
[1749453070327,1.41801722,105590.0,105580.0,0.10532728]
[1749453070835,1.41801722,105590.0,105580.0,0.10532588]
[1749453071329,1.41801722,105590.0,105580.0,0.09189768]
[1749453071534,1.41801722,105590.0,105580.0,0.10534177]
[1749453071732,1.30066928,105590.0,105580.0,0.10534181]
[1749453072626,1.41801722,105590.0,105580.0,0.10534181]
[1749453072934,1.41801722,105590.0,105580.0,0.10534095]
[1749453073234,1.41801722,105590.0,105580.0,0.09189768]
[1749453073433,1.41801722,105590.0,105580.0,0.16441003]
[1749453073933,1.30066928,105590.0,105580.0,0.16441003]
[1749453074135,1.30066928,105590.0,105580.0,0.16441006]
[1749453074435,1.30066928,105590.0,105580.0,0.15096555]
[1749453074634,1.30066928,105590.0,105580.0,0.16440861]
[1749453074830,1.30066928,105590.0,105580.0,0.16440862]
[1749453075028,1.30066928,105590.0,105580.0,0.16440858]
[1749453075536,1.29661268,105590.0,105580.0,0.16440858]
[1749453076334,1.29661268,105590.0,105580.0,0.15096555]
[1749453076634,1.30066928,105590.0,105580.0,0.16439723]
[1749453077138,1.30066928,105590.0,105580.0,0.16439718]
[1749453077438,1.66146928,105590.0,105580.0,0.16439718]
[1749453077839,1.66146928,105590.0,105580.0,0.16439707]
[1749453078343,1.66146928,105590.0,105580.0,0.16439704]
[1749453079028,1.66146928,105590.0,105580.0,0.16439708]
[1749453079241,1.54412134,105590.0,105580.0,0.16439708]
[1749453079436,1.66146928,105590.0,105580.0,0.16439708]
[1749453079633,1.65741268,105590.0,105580.0,0.16439705]
[1749453080044,1.65741268,105590.0,105580.0,0.15096555]
[1749453080539,1.65741268,105590.0,105580.0,0.16439725]
[1749453080941,1.22909268,105590.0,105580.0,0.35373735]
[1749453081144,1.54002474,105590.0,105580.0,0.15096297]
[1749453081342,1.65737268,105590.0,105580.0,0.16438877]
[1749453081537,1.65737268,105590.0,105580.0,0.15096297]
[1749453081739,1.65737268,105590.0,105580.0,0.16438393]
[1749453082242,2.08693268,105590.0,105580.0,0.16438405]
[1749453082434,2.08693268,105590.0,105580.0,0.35372425]
[1749453082640,2.08693268,105590.0,105580.0,0.29465909]
[1749453083046,2.08693268,105590.0,105580.0,0.29465915]
[1749453083243,2.08693268,105590.0,105580.0,0.29465914]
[1749453083441,2.08693268,105590.0,105580.0,0.28123788]
[1749453083642,2.08693268,105590.0,105580.0,0.29465909]
[1749453084345,2.08693268,105590.0,105580.0,0.2946599]
[1749453084646,2.09098928,105590.0,105580.0,0.28123788]
[1749453085039,2.09098928,105590.0,105580.0,0.29465992]
[1749453086450,2.09098928,105590.0,105580.0,0.29465987]
[1749453086642,2.08693268,105590.0,105580.0,0.29465987]
[1749453086846,2.08693268,105590.0,105580.0,0.29465437]
[1749453087549,2.08693268,105590.0,105580.0,0.29465558]
[1749453087745,2.08909268,105590.0,105580.0,0.29465563]
[1749453088041,1.16683268,105590.0,105580.0,0.39915119]
[1749453088249,1.51322474,105590.0,105580.0,0.52464018]
[1749453088446,1.63033268,105590.0,105580.0,0.52464018]
[1749453088654,1.63073268,105590.0,105580.0,0.52464018]
[1749453088947,1.63073268,105590.0,105580.0,0.40729224]
[1749453088948,1.63033268,105590.0,105580.0,0.40729224]
[1749453089146,1.63073268,105590.0,105580.0,0.40729224]
[1749453089450,1.51338474,105590.0,105580.0,0.40729224]
[1749453089746,1.63073268,105590.0,105580.0,0.40729224]
[1749453089947,1.10193268,105590.0,105580.0,0.52464018]
[1749453090147,1.63073268,105590.0,105580.0,0.52464018]
[1749453090346,1.63073268,105590.0,105580.0,0.40729224]
[1749453090945,1.10193268,105590.0,105580.0,0.52464018]
[1749453091148,1.63069268,105590.0,105580.0,0.52464018]
[1749453091751,1.63474928,105590.0,105580.0,0.52464018]
[1749453092850,1.63474928,105590.0,105580.0,0.40729224]
[1749453094954,1.10598928,105590.0,105580.0,0.40729224]
[1749453095252,1.63458928,105590.0,105580.0,0.40729224]
[1749453095850,1.63053268,105590.0,105580.0,0.40729224]
[1749453096552,1.51318474,105590.0,105580.0,0.40729224]
[1749453096751,1.63053268,105590.0,105580.0,0.40729224]
[1749453097053,1.63458928,105590.0,105580.0,0.40729224]
[1749453099044,1.66658928,105590.0,105580.0,0.37795862]
[1749453099249,1.66658928,105590.0,105580.0,0.34705862]
[1749453099556,1.73178928,105590.0,105580.0,0.34705862]
[1749453099953,1.72773268,105590.0,105580.0,0.34705862]
[1749453100855,1.73178928,105590.0,105580.0,0.34705862]
[1749453101756,1.69888928,105590.0,105580.0,0.34705862]
[1749453101955,1.69888928,105590.0,105580.0,0.37765862]
[1749453102256,1.66658928,105590.0,105580.0,0.37765862]
[1749453102954,1.66253268,105590.0,105580.0,0.37765862]
[1749453103956,1.66658928,105590.0,105580.0,0.37765862]
[1749453104156,1.66658928,105590.0,105580.0,0.40699224]
[1749453104360,1.54924134,105590.0,105580.0,0.40699224]
[1749453104545,1.63458928,105590.0,105580.0,0.40699224]
[1749453104746,1.10598928,105590.0,105580.0,0.40699224]
[1749453104958,1.63001268,105590.0,105580.0,0.40699224]
[1749453105156,1.63041268,105590.0,105580.0,0.40699224]
[1749453105351,0.98458474,105590.0,105580.0,0.40699224]
[1749453105556,1.63049268,105590.0,105580.0,0.52434018]
[1749453105755,1.63049268,105590.0,105580.0,0.40699224]
[1749453105956,1.63009268,105590.0,105580.0,0.40699224]
[1749453106155,1.63049268,105590.0,105580.0,0.40699224]
[1749453106454,0.98458474,105590.0,105580.0,0.40699224]
[1749453106662,1.15270474,105590.0,105580.0,1.09719854]
[1749453106853,1.15270474,105590.0,105580.0,1.00881143]
[1749453107049,1.26965268,105590.0,105580.0,1.00881143]
[1749453107253,1.27005268,105590.0,105580.0,1.00881143]
[1749453108353,1.27005268,105590.0,105580.0,1.1268495]
[1749453108748,1.27005268,105590.0,105580.0,1.00881143]
[1749453109261,1.27005268,105590.0,105580.0,1.12683695]
[1749453110161,1.27005268,105590.0,105580.0,0.97996281]
[1749453111761,1.27005268,105590.0,105580.0,0.86261487]
[1749453111962,1.27005268,105590.0,105580.0,0.97996281]
[1749453112768,1.27005268,105590.0,105580.0,1.12683695]
[1749453115768,1.27005268,105590.0,105580.0,1.00948901]
[1749453116265,1.27410928,105590.0,105580.0,1.30638901]
[1749453116468,1.27410928,105590.0,105580.0,0.67340445]
[1749453116663,1.36970928,105590.0,105580.0,0.67340445]
[1749453116867,1.36970928,105590.0,105580.0,0.69495445]
[1749453117769,1.37114928,105590.0,105580.0,0.69495445]
[1749453121971,1.37114928,105590.0,105580.0,0.39805445]
[1749453122870,0.94158928,105590.0,105580.0,0.39805445]
[1749453131476,0.94158928,105590.0,105580.0,0.36525445]
[1749453131879,1.30238928,105590.0,105580.0,0.33215445]
[1749453134579,1.41973722,105590.0,105580.0,0.33215445]
[1749453134787,1.30238928,105590.0,105580.0,0.33215445]
[1749453139087,0.94158928,105590.0,105580.0,0.33215445]
[1749453139288,1.30238928,105590.0,105580.0,0.33215445]
[1749453139499,1.30238928,105590.0,105580.0,0.33215435]
[1749453150890,1.18504134,105590.0,105580.0,0.33215435]
[1749453151096,1.30238928,105590.0,105580.0,0.33215435]
[1749453154898,1.30150928,105590.0,105580.0,0.33215435]
[1749453155198,1.30150928,105590.0,105580.0,0.36255435]
[1749453157798,1.73102928,105590.0,105580.0,0.36255435]
[1749453159992,1.73102928,105590.0,105580.0,0.39375435]
[1749453161194,1.08420134,105590.0,105580.0,0.39375435]
[1749453161399,1.73058928,105590.0,105580.0,0.39375435]
[1749453161798,1.63093268,105590.0,105580.0,0.42575435]
[1749453162299,1.63093268,105590.0,105580.0,0.57262849]
[1749453164800,1.63498928,105590.0,105580.0,0.57262849]
[1749453165898,1.63093268,105590.0,105580.0,0.57262849]
[1749453166294,1.63093268,105590.0,105580.0,0.42575435]
[1749453167002,1.63498928,105590.0,105580.0,0.39375435]
[1749453167198,1.73008928,105590.0,105580.0,0.36255435]
[1749453169104,1.61274134,105590.0,105580.0,0.36255435]
[1749453169305,1.73008928,105590.0,105580.0,0.36255435]
[1749453169807,1.61274134,105590.0,105580.0,0.36255435]
[1749453170008,1.73008928,105590.0,105580.0,0.36255435]
[1749453180819,1.61274134,105590.0,105580.0,0.36255435]
[1749453181112,1.73008928,105590.0,105580.0,0.36255435]
[1749453183613,1.30020928,105590.0,105580.0,0.36255435]
[1749453183816,1.73108928,105590.0,105580.0,0.36255435]
[1749453184017,1.73120928,105590.0,105580.0,0.36255435]
[1749453184213,1.72715268,105590.0,105580.0,0.36255435]
[1749453185120,1.36635268,105590.0,105580.0,0.36255435]
[1749453185321,1.72715268,105590.0,105580.0,0.36255435]
[1749453186916,1.60980474,105590.0,105580.0,0.36255435]
[1749453187111,1.72715268,105590.0,105580.0,0.36255435]
[1749453191120,0.71884474,105590.0,105580.0,0.36255435]
[1749453191317,1.36607268,105590.0,105580.0,0.54052849]
[1749453191518,1.72687268,105590.0,105580.0,0.54052849]
[1749453191719,1.36607268,105590.0,105580.0,0.39365435]
[1749453191918,1.36607268,105590.0,105580.0,0.54052849]
[1749453192224,1.72687268,105590.0,105580.0,0.39365435]
[1749453192525,1.60952474,105590.0,105580.0,0.39365435]
[1749453192827,1.72683268,105590.0,105580.0,0.39365435]
[1749453197426,1.19699268,105590.0,105580.0,0.39365435]
[1749453197731,1.27077268,105590.0,105580.0,0.39365435]
[1749453197922,0.74069268,105590.0,105580.0,0.42465435]
[1749453198128,1.27073268,105590.0,105580.0,0.57152849]
[1749453198430,1.27073268,105590.0,105580.0,0.42465435]
[1749453199331,1.27069268,105590.0,105580.0,0.42465435]
[1749453199529,1.27029268,105590.0,105580.0,0.42465435]
[1749453199830,1.27069268,105590.0,105580.0,0.42465435]
[1749453200231,0.74109268,105590.0,105580.0,0.54200229]
[1749453200422,1.27025268,105590.0,105580.0,0.54200229]
[1749453201332,1.27065268,105590.0,105580.0,0.42465435]
[1749453206745,1.27041268,105590.0,105580.0,0.42465435]
[1749453207048,1.27041268,105590.0,105580.0,0.57152849]
[1749453214555,1.15306474,105590.0,105580.0,0.57152849]
[1749453214756,1.27041268,105590.0,105580.0,0.57152849]
[1749453215250,0.84089268,105590.0,105580.0,0.57152849]
[1749453220252,0.84089268,105590.0,105580.0,0.45350297]
[1749453220551,0.90359268,105590.0,105580.0,0.45350297]
[1749453220760,0.37427268,105590.0,105580.0,0.45350297]
[1749453221056,0.90339268,105590.0,105580.0,0.45350297]
[1749453222455,1.26419268,105590.0,105580.0,0.45350297]
[1749453222657,1.29559268,105590.0,105580.0,0.54067596]
[1749453223558,1.29559268,105590.0,105580.0,0.39380182]
[1749453224157,0.93479268,105590.0,105580.0,0.39380182]
[1749453224354,0.55502474,105590.0,105580.0,0.39380182]
[1749453224658,0.84061268,105590.0,105580.0,0.90464976]
[1749453225059,0.31157268,105590.0,105580.0,0.90464976]
[1749453225254,0.84061268,105590.0,105580.0,0.90464976]
[1749453225550,0.84061268,105590.0,105580.0,0.42650182]
[1749453225756,0.90471268,105590.0,105580.0,0.45520297]
[1749453226055,1.29601268,105590.0,105580.0,0.45520297]
[1749453226245,1.29601268,105590.0,105580.0,0.42649534]
[1749453226660,1.29601268,105590.0,105580.0,0.45520297]
[1749453228458,1.29601268,105590.0,105580.0,0.42650001]
[1749453228657,1.29601268,105590.0,105580.0,0.39380001]
[1749453233559,0.93521268,105590.0,105580.0,0.39380001]
[1749453233858,1.29601268,105590.0,105580.0,0.39380001]
[1749453234660,0.93521268,105590.0,105580.0,0.39380001]
[1749453234860,1.29601268,105590.0,105580.0,0.39380001]
[1749453235460,1.29601268,105590.0,105580.0,0.27562883]
[1749453235654,1.29601268,105590.0,105580.0,0.42250297]
[1749453242667,0.93521268,105590.0,105580.0,0.42250297]
[1749453242867,1.29601268,105590.0,105580.0,0.42250297]
[1749453244973,1.29601268,105590.0,105580.0,0.54068278]
[1749453245570,1.29601268,105590.0,105580.0,0.42250297]
[1749453247572,1.29601268,105590.0,105580.0,0.39383698]
[1749453249274,1.30006928,105590.0,105580.0,0.39383698]
[1749453251475,1.29601268,105590.0,105580.0,0.39383698]
[1749453253571,1.29601268,105590.0,105580.0,0.54071112]
[1749453254277,1.29601268,105590.0,105580.0,0.39383698]
[1749453255874,1.29601268,105590.0,105580.0,0.54071112]
[1749453256480,1.29601268,105590.0,105580.0,0.42250297]
[1749453259382,1.30006928,105590.0,105580.0,0.42250297]
[1749453261480,1.29601268,105590.0,105580.0,0.42250297]
[1749453262383,1.30006928,105590.0,105580.0,0.42250297]
[1749453263385,1.29601268,105590.0,105580.0,0.42250297]
[1749453264983,1.29601268,105590.0,105580.0,0.36100297]
[1749453274891,1.29601268,105590.0,105580.0,0.47924234]
[1749453275899,1.29601268,105590.0,105580.0,0.36100297]
[1749453276490,1.29601268,105590.0,105580.0,0.47923933]
[1749453277091,1.29601268,105590.0,105580.0,0.33236519]
[1749453290299,1.29601268,105590.0,105580.0,0.47923933]
[1749453292602,1.29601268,105590.0,105580.0,0.33236519]
[1749453293901,1.29601268,105590.0,105580.0,0.47923933]
[1749453294701,1.29601268,105590.0,105580.0,0.33236519]
[1749453300607,1.29601268,105590.0,105580.0,0.47923933]
[1749453301803,1.29601268,105590.0,105580.0,0.28989923]
[1749453302107,1.41336062,105590.0,105580.0,0.14302509]
[1749453302902,1.41336062,105590.0,105580.0,0.11348203]
[1749453303108,1.41336062,105590.0,105580.0,0.11753863]
[1749453303300,1.41336062,105590.0,105580.0,0.17665265]
[1749453306508,1.41336062,105590.0,105580.0,0.36599285]
[1749453306708,1.29601268,105590.0,105580.0,0.36599285]
[1749453314818,1.29601268,105590.0,105580.0,0.17665265]
[1749453317723,0.93521268,105590.0,105580.0,0.17665265]
[1749453317928,1.65681268,105590.0,105580.0,0.17665265]
[1749453318615,1.77416062,105590.0,105580.0,0.17665265]
[1749453318826,1.77416062,105590.0,105580.0,0.08795935]
[1749453320525,1.77416062,105590.0,105580.0,0.02884533]
[1749453320723,1.83318379,105590.0,105580.0,0.02884533]
[1749453321413,1.77416062,105590.0,105580.0,0.02884533]
[1749453322522,0.1893388,105580.0,105570.0,0.1479496]
[1749453322726,0.1893927,105550.0,105540.0,0.61024212]
[1749453322933,1.19466064,105550.0,105540.0,0.50280725]
[1749453323225,1.19491191,105550.0,105540.0,0.50280725]
[1749453325323,1.19491191,105550.0,105540.0,0.3856069]
[1749453326825,1.19491191,105550.0,105540.0,0.39905877]
[1749453327216,1.19491191,105550.0,105540.0,0.39905816]
[1749453327422,1.19491191,105550.0,105540.0,0.39905815]
[1749453327622,1.19491191,105550.0,105540.0,0.39905813]
[1749453327825,1.19491191,105550.0,105540.0,0.3856069]
[1749453328029,1.19491191,105550.0,105540.0,0.39905816]
[1749453328225,1.19491191,105550.0,105540.0,0.39984541]
[1749453328425,1.19491191,105550.0,105540.0,0.3856069]
[1749453328723,1.20420116,105550.0,105540.0,0.39905782]
[1749453328923,1.20420116,105550.0,105540.0,0.3856069]
[1749453329126,1.20420116,105550.0,105540.0,0.51720767]
[1749453329919,1.20420116,105550.0,105540.0,0.51640359]
[1749453330118,1.20420116,105550.0,105540.0,0.50295484]
[1749453330321,1.20420116,105550.0,105540.0,0.51720767]
[1749453330522,1.20420116,105550.0,105540.0,0.51640344]
[1749453330725,1.20420116,105550.0,105540.0,0.53065625]
[1749453330924,1.20420116,105550.0,105540.0,0.50295484]
[1749453331129,1.20420116,105550.0,105540.0,0.51640345]
[1749453331326,1.20420116,105550.0,105540.0,0.53065991]
[1749453331529,1.20420116,105550.0,105540.0,0.51640346]
[1749453331724,1.20420116,105550.0,105540.0,0.51643311]
[1749453332027,1.20420116,105550.0,105540.0,0.50295484]
[1749453332219,1.20420116,105550.0,105540.0,0.51643314]
[1749453332424,1.20420116,105550.0,105540.0,0.50295484]
[1749453332624,1.20445243,105550.0,105540.0,0.53068955]
[1749453332931,1.20445243,105550.0,105540.0,0.51721129]
[1749453333327,1.08710449,105550.0,105540.0,0.50295484]
[1749453333534,1.19516318,105550.0,105540.0,0.51643315]
[1749453333832,1.19516318,105550.0,105540.0,0.5306848]
[1749453334026,0.83436318,105550.0,105540.0,0.50295484]
[1749453334524,0.83436318,105550.0,105540.0,0.52126293]
[1749453334728,0.83436318,105550.0,105540.0,0.53470079]
[1749453334926,0.83436318,105550.0,105540.0,0.53470035]
[1749453335126,0.83436318,105550.0,105540.0,0.52044887]
[1749453335425,0.83436318,105550.0,105540.0,0.53469991]
[1749453335618,0.83436318,105550.0,105540.0,0.52126249]
[1749453335822,0.83436318,105550.0,105540.0,0.53469984]
[1749453336021,0.83436318,105550.0,105540.0,0.53469987]
[1749453336632,0.83436318,105550.0,105540.0,0.52044879]
[1749453336930,0.83436318,105550.0,105540.0,0.53468676]
[1749453337131,0.83436318,105550.0,105540.0,0.53468675]
[1749453337325,0.83436318,105550.0,105540.0,0.52126249]
[1749453337530,0.83436318,105550.0,105540.0,0.53468672]
[1749453337734,0.83436318,105550.0,105540.0,0.52043567]
[1749453338034,0.83436318,105550.0,105540.0,0.50701144]
[1749453338325,0.83436318,105550.0,105540.0,0.5204357]
[1749453338527,0.83436318,105550.0,105540.0,0.50701144]
[1749453338728,0.83756318,105550.0,105540.0,0.52523568]
[1749453338936,0.83756318,105550.0,105540.0,0.52604526]
[1749453339129,0.83756318,105550.0,105540.0,0.53946953]
[1749453339330,0.83756318,105550.0,105540.0,0.52523571]
[1749453339629,0.83756318,105550.0,105540.0,0.52604526]
[1749453339932,0.83756318,105550.0,105540.0,0.53946948]
[1749453340231,0.83756318,105550.0,105540.0,0.52523582]
[1749453340421,0.83756318,105550.0,105540.0,0.53986964]
[1749453340727,0.83756318,105550.0,105540.0,0.3948635]
[1749453340932,0.87006318,105550.0,105540.0,0.42211456]
[1749453341128,0.87006318,105550.0,105540.0,0.2948635]
[1749453341327,0.87006318,105550.0,105540.0,0.30909023]
[1749453341526,0.87006318,105550.0,105540.0,0.42643817]
[1749453341729,0.87006318,105550.0,105540.0,0.42564994]
[1749453341930,0.87006318,105550.0,105540.0,0.42643817]
[1749453342535,0.87006318,105550.0,105540.0,0.4398822]
[1749453342735,0.87006318,105550.0,105540.0,0.50070235]
[1749453342932,1.34821112,105550.0,105540.0,0.11219155]
[1749453343137,1.41271112,105550.0,105540.0,0.0238477]
[1749453343334,1.29216318,105550.0,105540.0,0.01869462]
[1749453343639,1.29216318,105550.0,105540.0,0.03335646]
[1749453343840,1.29216318,105550.0,105540.0,0.01969505]
[1749453344037,1.29216318,105550.0,105540.0,0.03335644]
[1749453344337,1.29216318,105550.0,105540.0,0.02449505]
[1749453344534,1.29536318,105550.0,105540.0,0.03815644]
[1749453344836,1.29536318,105550.0,105540.0,0.0102566]
[1749453345038,1.29536318,105550.0,105540.0,0.02351804]
[1749453345232,1.29536318,105550.0,105540.0,0.02391801]
[1749453345538,1.29536318,105550.0,105540.0,0.02449434]
[1749453345836,1.29536318,105550.0,105540.0,0.03815575]
[1749453346039,1.29536318,105550.0,105540.0,0.03815577]
[1749453346242,1.29536318,105550.0,105540.0,0.0102566]
[1749453346940,1.29536318,105550.0,105540.0,0.02391803]
[1749453347142,1.29536318,105550.0,105540.0,0.02476651]
[1749453347533,1.29536318,105550.0,105540.0,0.02397805]
[1749453347732,1.29536318,105550.0,105540.0,0.0102566]
[1749453347938,1.29536318,105550.0,105540.0,0.03848853]
[1749453348240,1.29536318,105550.0,105540.0,0.0054566]
[1749453348437,1.29536318,105550.0,105540.0,0.01917834]
[1749453348637,1.29536318,105550.0,105540.0,0.0199668]
[1749453348842,1.29216318,105550.0,105540.0,0.01877833]
[1749453349034,1.29216318,105550.0,105540.0,0.01961591]
[1749453349244,1.29216318,105550.0,105540.0,0.0050566]
[1749453349444,1.29536318,105550.0,105540.0,0.0098566]
[1749453349634,1.29536318,105550.0,105540.0,0.02357833]
[1749453349834,1.29536318,105550.0,105540.0,0.02441591]
[1749453350138,1.29536318,105550.0,105540.0,0.03813768]
[1749453350447,1.29536318,105550.0,105540.0,0.03814237]